bitfinex/quotes_SOLUSD_20260211
["timestamp","ask_amount","ask_price","bid_price","bid_amount"]
[1770846415554,4.16039829,80.409,80.381,4.49565745]
[1770846417180,16.59697176,80.408,80.381,4.49565745]
[1770846417486,52.46,80.427,80.401,4.49565745]
[1770846418163,4.76063234,80.44,80.411,4.49565745]
[1770846418164,52.48,80.437,80.411,4.49565745]
[1770846418371,4.16039829,80.436,80.403,4.49565745]
[1770846418584,4.16039829,80.434,80.403,4.49565745]
[1770846419170,49.71172255,80.464,80.394,4.49565745]
[1770846419171,4.16039829,80.429,80.394,4.49565745]
[1770846419478,52.48,80.428,80.401,4.49565745]
[1770846419985,52.48,80.428,80.411,4.49565745]
[1770846421062,52.48,80.428,80.413,4.49565745]
[1770846421264,52.48,80.428,80.412,12.43595483]
[1770846421265,4.16039829,80.459,80.421,4.49565745]
[1770846421484,52.5,80.45,80.431,4.49565745]
[1770846421782,4.16039829,80.48,80.441,4.49565745]
[1770846421964,6.48753126,80.479,80.451,4.49565745]
[1770846422482,4.16039829,80.48,80.451,4.49565745]
[1770846422985,4.16039829,80.479,80.442,4.49565745]
[1770846423182,4.16039829,80.477,80.443,16.92681988]
[1770846423485,4.16039829,80.477,80.444,4.49565745]
[1770846424370,4.16039829,80.469,80.444,4.49565745]
[1770846425665,16.58768003,80.469,80.444,4.49565745]
[1770846426286,12.42728174,80.469,80.445,4.49565745]
[1770846426488,4.16039829,80.478,80.45,4.75425661]
[1770846426677,4.16039829,80.484,80.461,4.49565745]
[1770846427285,52.48,80.49,80.471,4.49565745]
[1770846427463,10.64732986,80.499,80.471,4.49565745]
[1770846427464,12.42266888,80.498,80.471,4.49565745]
[1770846427667,16.58306717,80.498,80.471,4.49565745]
[1770846428190,4.16039829,80.497,80.471,4.49565745]
[1770846428776,4.16039829,80.497,80.466,4.49565745]
[1770846428976,12.42266888,80.498,80.471,4.49565745]
[1770846429182,12.42207022,80.502,80.471,4.49565745]
[1770846430091,6.49046177,80.509,80.491,4.49565745]
[1770846430284,0.2,80.51,80.491,4.49565745]
[1770846430871,0.2,80.52,80.5,4.75425661]
[1770846431189,6.48846093,80.518,80.501,4.49565745]
[1770846431392,0.2,80.54,80.511,1.86516722]
[1770846431890,4.16039829,80.537,80.511,1.86516722]
[1770846432090,4.36039829,80.53,80.5,4.75425661]
[1770846432394,4.16039829,80.528,80.5,4.75425661]
[1770846432891,4.16039829,80.528,80.51,12.71455502]
[1770846433593,0.2,80.53,80.51,12.71455502]
[1770846434298,0.2,80.53,80.51,25.13527115]
[1770846434595,4.16039829,80.529,80.5,12.71455502]
[1770846434980,4.16039829,80.529,80.501,12.422175]
[1770846435178,4.16039829,80.519,80.481,1.86516722]
[1770846435392,4.16039829,80.519,80.485,1.86516722]
[1770846435898,4.16039829,80.519,80.49,12.71455502]
[1770846436598,4.16039829,80.517,80.49,25.1384187]
[1770846436794,4.16039829,80.517,80.485,12.42458078]
[1770846436988,4.16039829,80.509,80.471,1.86516722]
[1770846438581,4.16039829,80.507,80.473,1.86516722]
[1770846438988,4.16039829,80.507,80.48,12.71455502]
[1770846439190,4.16039829,80.507,80.481,1.86516722]
[1770846440103,4.16039829,80.511,80.481,1.86516722]
[1770846440695,4.14361482,80.509,80.482,12.42513854]
[1770846441099,4.14361482,80.509,80.483,58.62641832]
[1770846442000,4.14361482,80.519,80.484,1.86516722]
[1770846442302,4.14361482,80.519,80.483,58.62641832]
[1770846442597,4.14361482,80.517,80.484,12.42482977]
[1770846442797,52.46,80.529,80.491,1.86516722]
[1770846442798,12.41791148,80.529,80.491,1.86516722]
[1770846443097,12.91455502,80.54,80.511,1.86516722]
[1770846443098,0.2,80.54,80.511,1.86516722]
[1770846443280,0.2,80.54,80.487,59.36]
[1770846443281,0.2,80.54,80.52,12.71455502]
[1770846443683,4.14361482,80.539,80.51,12.71455502]
[1770846444003,4.14361482,80.538,80.501,1.66516722]
[1770846444208,12.41634487,80.539,80.49,12.71455502]
[1770846444209,4.14361482,80.529,80.49,12.71455502]
[1770846444390,4.14361482,80.519,80.484,12.42482977]
[1770846444783,4.14361482,80.509,80.478,12.4257561]
[1770846446810,4.14361482,80.499,80.471,12.42683699]
[1770846447481,4.14361482,80.499,80.446,4.61729252]
[1770846447685,4.21645856,80.479,80.447,12.43054433]
[1770846448289,4.21645856,80.469,80.431,12.43301712]
[1770846448803,4.21645856,80.467,80.431,12.43301712]
[1770846449309,4.21645856,80.467,80.432,1.66516722]
[1770846450307,4.21645856,80.467,80.431,12.43301712]
[1770846450800,4.21645856,80.467,80.424,1.6598058]
[1770846451003,4.21645856,80.465,80.425,12.43394466]
[1770846451391,4.21645856,80.465,80.425,43.51880633]
[1770846452599,12.42760917,80.466,80.425,12.43394466]
[1770846452600,4.21645856,80.459,80.425,12.43394466]
[1770846453091,4.21645856,80.459,80.426,1.61456344]
[1770846455008,4.21645856,80.459,80.427,12.43363547]
[1770846455314,4.21645856,80.459,80.427,14.01882784]
[1770846455809,4.21645856,80.459,80.428,1.57073864]
[1770846457514,4.21645856,80.459,80.431,1.54228608]
[1770846458798,4.21645856,80.459,80.432,58.62641832]
[1770846459123,4.21645856,80.459,80.433,58.62641832]
[1770846460021,4.21645856,80.458,80.433,58.62641832]
[1770846460894,12.42880932,80.459,80.433,58.62641832]
[1770846460895,4.21645856,80.449,80.433,46.5080441]
[1770846461198,49.70162911,80.481,80.422,12.43429278]
[1770846461199,4.05201033,80.47,80.423,4.46759209]
[1770846461408,4.05201033,80.469,80.431,4.46759209]
[1770846462115,4.052751,80.467,80.433,4.46759209]
[1770846464530,4.01279189,80.465,80.435,4.46759209]
[1770846465108,17.18356504,80.47,80.435,4.46759209]
[1770846465318,12.4246754,80.485,80.441,4.46759209]
[1770846465513,4.01279189,80.509,80.461,4.46759209]
[1770846465720,3.99974933,80.489,80.454,4.46759209]
[1770846466616,3.96305079,80.479,80.455,12.4293083]
[1770846466815,3.96305079,80.479,80.447,4.46759209]
[1770846467028,3.96305079,80.479,80.449,12.4300848]
[1770846469535,3.96305079,80.479,80.45,4.46759209]
[1770846469728,16.38871881,80.479,80.45,4.46759209]
[1770846469930,3.85538285,80.478,80.45,4.46759209]
[1770846471631,3.75272206,80.476,80.443,16.40558611]
[1770846471822,3.75272206,80.476,80.444,3.97448866]
[1770846473743,3.75272206,80.476,80.446,3.97448866]
[1770846474227,3.68521104,80.475,80.446,3.97448866]
[1770846475235,12.42612314,80.476,80.424,3.97448866]
[1770846475236,3.65201558,80.459,80.424,3.97448866]
[1770846475736,3.61918781,80.449,80.416,3.97448866]
[1770846475941,3.61918781,80.447,80.418,3.97448866]
[1770846477335,12.43069885,80.446,80.419,12.43487235]
[1770846477535,12.43069885,80.446,80.42,3.97448866]
[1770846477743,3.55461863,80.445,80.42,3.97448866]
[1770846477938,3.55461863,80.439,80.405,12.43699491]
[1770846478330,3.55461863,80.438,80.405,12.43699491]
[1770846478717,3.55461863,80.438,80.411,3.97448866]
[1770846479644,12.7469367,80.45,80.412,3.97448866]
[1770846479850,3.49147048,80.449,80.412,3.97448866]
[1770846480235,52.52,80.463,80.412,3.97448866]
[1770846480438,52.52,80.463,80.411,43.526248]
[1770846480439,3.49147048,80.47,80.451,3.97448866]
[1770846480635,12.7469367,80.49,80.452,4.13750596]
[1770846480833,12.7469367,80.48,80.441,4.13750596]
[1770846481054,12.7469367,80.49,80.451,4.13750596]
[1770846481532,43.4842028,80.489,80.451,4.13750596]
[1770846481740,43.4842028,80.489,80.452,4.13750596]
[1770846484544,12.42405794,80.489,80.454,4.13750596]
[1770846485340,52.5,80.492,80.461,4.13750596]
[1770846485648,12.7469367,80.49,80.453,4.13750596]
[1770846485853,12.7469367,80.47,80.437,4.13750596]
[1770846486222,12.7469367,80.48,80.437,4.13750596]
[1770846486539,52.58,80.479,80.437,4.13750596]
[1770846486844,12.4257561,80.478,80.439,4.13750596]
[1770846487535,12.73691325,80.49,80.451,4.13750596]
[1770846487740,6.49550345,80.494,80.461,4.13750596]
[1770846488142,6.49550345,80.494,80.471,4.13750596]
[1770846488343,12.73691325,80.49,80.461,4.13750596]
[1770846488535,12.73691325,80.49,80.451,4.13750596]
[1770846488736,12.42405794,80.489,80.453,4.13750596]
[1770846491550,12.42405794,80.489,80.455,4.13750596]
[1770846491760,12.42353346,80.493,80.455,4.13750596]
[1770846492055,12.42353346,80.493,80.461,4.13750596]
[1770846493438,12.73691325,80.49,80.454,12.42946279]
[1770846493643,12.42405794,80.489,80.454,12.42946279]
[1770846493942,12.42405794,80.489,80.456,4.13750596]
[1770846494535,12.42359155,80.493,80.461,4.13750596]
[1770846494851,65.00359155,80.493,80.461,4.13750596]
[1770846495065,52.58,80.493,80.463,4.13750596]
[1770846495235,12.42195258,80.503,80.471,4.13750596]
[1770846496357,12.42027865,80.514,80.481,4.13750596]
[1770846496551,43.47077918,80.514,80.481,4.13750596]
[1770846496752,12.42027865,80.514,80.481,4.13750596]
[1770846498453,12.73691325,80.51,80.478,12.42565689]
[1770846498751,12.73691325,80.51,80.473,12.4264572]
[1770846499053,4.75096365,80.51,80.473,16.56396316]
[1770846499238,6.49015605,80.517,80.491,4.13750596]
[1770846499639,12.42004595,80.515,80.476,4.13750596]
[1770846499845,12.42004595,80.515,80.481,4.13750596]
[1770846500049,6.49015605,80.517,80.481,4.13750596]
[1770846500251,12.41989169,80.516,80.481,4.13750596]
[1770846500440,12.41989169,80.516,80.483,4.13750596]
[1770846501057,52.62,80.517,80.491,4.13750596]
[1770846501353,6.48990234,80.527,80.501,4.13750596]
[1770846501559,12.41755544,80.532,80.501,4.13750596]
[1770846502461,18.90667408,80.537,80.511,4.13750596]
[1770846502883,4.75096365,80.53,80.499,4.13750596]
[1770846504063,4.75096365,80.52,80.493,12.42331948]
[1770846504248,4.75096365,80.52,80.494,4.13750596]
[1770846504565,12.41942895,80.519,80.494,4.13750596]
[1770846505268,12.72108351,80.52,80.494,16.56066715]
[1770846505450,12.41865779,80.524,80.495,4.13750596]
[1770846506973,52.64,80.528,80.497,4.13750596]
[1770846508454,52.64,80.528,80.498,46.5080441]
[1770846508773,52.66,80.539,80.511,4.13750596]
[1770846508968,6.48731403,80.537,80.513,4.13750596]
[1770846510057,12.72108351,80.53,80.504,12.4217154]
[1770846510369,12.72108351,80.53,80.476,4.61729252]
[1770846510370,12.72108351,80.51,80.474,4.13750596]
[1770846510955,12.72108351,80.49,80.452,4.13750596]
[1770846511170,12.72108351,80.49,80.455,4.13750596]
[1770846511850,12.72108351,80.48,80.455,4.13750596]
[1770846512250,52.66,80.479,80.455,4.13750596]
[1770846516868,12.72108351,80.47,80.447,4.13750596]
[1770846517072,12.4257561,80.478,80.447,4.13750596]
[1770846517980,12.4257561,80.478,80.449,4.13750596]
[1770846518177,12.72108351,80.47,80.449,4.13750596]
[1770846518469,12.72108351,80.47,80.426,4.61729252]
[1770846518470,12.72108351,80.5,80.451,4.13750596]
[1770846518676,52.74,80.486,80.451,4.13750596]
[1770846518878,12.72108351,80.48,80.448,12.43038981]
[1770846519052,12.72108351,80.48,80.448,16.56789577]
[1770846519252,12.72108351,80.48,80.449,4.13750596]
[1770846519855,52.74,80.486,80.449,4.13750596]
[1770846521573,12.72108351,80.5,80.461,4.13750596]
[1770846521876,52.72,80.499,80.47,12.72108351]
[1770846522067,52.72,80.499,80.471,4.13750596]
[1770846522378,12.72108351,80.52,80.48,12.72108351]
[1770846522678,52.72,80.519,80.491,4.13750596]
[1770846522881,52.72,80.523,80.491,4.13750596]
[1770846523657,12.41896624,80.522,80.493,4.13750596]
[1770846524366,65.13887794,80.523,80.493,4.13750596]
[1770846526085,12.72108351,80.52,80.488,12.42410527]
[1770846526271,65.13887794,80.523,80.489,4.13750596]
[1770846526768,12.72108351,80.52,80.489,4.13750596]
[1770846527479,12.72108351,80.52,80.483,4.13750596]
[1770846527685,52.78,80.519,80.483,4.13750596]
[1770846528064,12.41958319,80.518,80.484,12.42482977]
[1770846528266,12.41958319,80.518,80.485,4.13750596]
[1770846528965,12.41958319,80.518,80.486,46.5080441]
[1770846529467,12.41958319,80.518,80.487,4.13750596]
[1770846530079,52.8,80.517,80.491,4.13750596]
[1770846530281,52.8,80.519,80.491,4.13750596]
[1770846530681,52.8,80.519,80.483,4.13750596]
[1770846531674,12.72108351,80.5,80.471,4.13750596]
[1770846531886,12.72108351,80.51,80.471,4.13750596]
[1770846532086,12.42112585,80.508,80.474,12.42632432]
[1770846532478,12.42112585,80.508,80.471,4.13750596]
[1770846532479,12.72108351,80.5,80.471,4.13750596]
[1770846532676,12.72108351,80.49,80.452,4.13750596]
[1770846532986,12.72108351,80.48,80.452,4.13750596]
[1770846533189,52.82,80.479,80.452,4.13750596]
[1770846534293,12.4257561,80.478,80.452,4.13750596]
[1770846534487,12.4257561,80.478,80.453,12.42961729]
[1770846537088,12.4257561,80.478,80.453,4.13750596]
[1770846537988,52.9,80.477,80.453,4.13750596]
[1770846540497,12.42606491,80.476,80.442,50.64555006]
[1770846540695,12.72108351,80.47,80.443,4.13750596]
[1770846541597,12.42714585,80.469,80.444,4.13750596]
[1770846541796,12.42666649,80.473,80.444,4.13750596]
[1770846542495,52.9,80.477,80.451,4.13750596]
[1770846544205,4.75401444,80.47,80.441,4.13750596]
[1770846544392,65.32602175,80.477,80.444,4.13750596]
[1770846544694,4.75401444,80.47,80.444,4.13750596]
[1770846545277,65.32602175,80.477,80.444,4.13750596]
[1770846546401,65.32602175,80.477,80.443,12.43108154]
[1770846546402,65.32602175,80.477,80.446,4.13750596]
[1770846546595,65.32602175,80.477,80.447,4.13750596]
[1770846548308,96.39079802,80.477,80.447,4.13750596]
[1770846548694,65.32602175,80.477,80.448,12.43038981]
[1770846548900,65.32602175,80.477,80.449,4.13750596]
[1770846551106,52.9,80.477,80.451,4.13750596]
[1770846551510,12.42606491,80.476,80.451,4.13750596]
[1770846551905,52.9,80.477,80.451,4.13750596]
[1770846552611,4.75481462,80.47,80.452,46.5080441]
[1770846552993,12.42714585,80.469,80.452,46.5080441]
[1770846553190,4.75481462,80.46,80.427,4.13750596]
[1770846553407,4.75481462,80.45,80.427,4.13750596]
[1770846554492,12.4302353,80.449,80.427,4.13750596]
[1770846554691,53.2,80.448,80.427,4.13750596]
[1770846554907,53.2,80.448,80.427,12.43361819]
[1770846555214,12.42802878,80.464,80.431,4.13750596]
[1770846555412,4.75481462,80.46,80.431,4.13750596]
[1770846556313,4.75481462,80.46,80.419,31.08697353]
[1770846556314,4.75481462,80.45,80.412,4.13750596]
[1770846556699,17.18504762,80.45,80.414,4.13750596]
[1770846557710,53.2,80.449,80.414,4.13750596]
[1770846558208,12.430233,80.45,80.421,4.13750596]
[1770846558415,53.22,80.448,80.423,4.13750596]
[1770846560315,12.43054433,80.447,80.423,4.13750596]
[1770846561016,4.75481462,80.44,80.413,12.4356702]
[1770846561393,43.50690516,80.447,80.407,4.13750596]
[1770846561394,4.75481462,80.43,80.407,4.13750596]
[1770846561612,53.26,80.429,80.403,12.43719577]
[1770846562015,53.26,80.429,80.401,12.43765624]
[1770846562216,12.43348087,80.428,80.402,4.13750596]
[1770846562517,12.43348087,80.428,80.391,4.13750596]
[1770846562719,4.75481462,80.42,80.391,4.13750596]
[1770846562919,4.75481462,80.42,80.381,43.54262822]
[1770846562920,4.75481462,80.41,80.381,12.44075092]
[1770846563396,53.28,80.409,80.381,12.44075092]
[1770846563806,6.4938,80.379,80.364,4.13750596]
[1770846564320,53.26,80.401,80.371,3.22058756]
[1770846564610,53.26,80.401,80.381,3.22058756]
[1770846567015,2.31985399,80.415,80.383,3.22058756]
[1770846567220,55.61985399,80.439,80.401,3.22058756]
[1770846567422,3.02702073,80.438,80.411,3.1425619]
[1770846567915,18.92321338,80.45,80.421,3.1425619]
[1770846568122,12.43011342,80.45,80.421,3.1425619]
[1770846569107,3.02702073,80.447,80.421,3.1425619]
[1770846570528,3.02702073,80.447,80.422,12.43440849]
[1770846573125,3.02702073,80.447,80.423,61.6]
[1770846573515,3.02702073,80.447,80.424,12.43409927]
[1770846573923,12.43038981,80.448,80.425,3.1425619]
[1770846574528,3.02702073,80.445,80.425,3.1425619]
[1770846580035,3.02702073,80.443,80.424,61.6]
[1770846580529,3.02702073,80.443,80.411,3.1425619]
[1770846581532,3.02702073,80.441,80.415,3.1425619]
[1770846582140,3.02702073,80.449,80.415,3.1425619]
[1770846582312,53.42,80.458,80.431,3.1425619]
[1770846582511,56.44702073,80.457,80.424,3.1425619]
[1770846582726,3.02702073,80.456,80.424,3.1425619]
[1770846583035,3.02702073,80.449,80.415,61.6]
[1770846583532,3.02702073,80.449,80.416,3.1425619]
[1770846584334,3.02702073,80.447,80.416,3.1425619]
[1770846585937,12.43069885,80.446,80.416,3.1425619]
[1770846586118,3.02702073,80.445,80.416,3.1425619]
[1770846587934,3.02702073,80.445,80.418,3.1425619]
[1770846589233,3.02702073,80.443,80.418,3.1425619]
[1770846590438,3.02702073,80.443,80.411,61.6]
[1770846590439,12.42851036,80.461,80.431,3.1425619]
[1770846591241,2.90855295,80.461,80.433,2.96592611]
[1770846592233,12.42853591,80.46,80.433,2.96592611]
[1770846592540,2.90855295,80.459,80.433,2.96592611]
[1770846592840,2.90855295,80.459,80.433,15.39856963]
[1770846593033,2.90855295,80.459,80.434,2.96592611]
[1770846594346,2.90855295,80.457,80.434,2.96592611]
[1770846595042,2.90855295,80.449,80.415,64.56592611]
[1770846595549,2.90855295,80.449,80.416,2.96592611]
[1770846595842,2.90855295,80.449,80.421,2.96592611]
[1770846596342,2.90855295,80.447,80.422,2.96592611]
[1770846597849,2.90855295,80.445,80.41,4.75481462]
[1770846598144,2.90855295,80.445,80.411,2.96592611]
[1770846598733,12.43017199,80.45,80.412,2.96592611]
[1770846598933,2.90855295,80.449,80.412,2.96592611]
[1770846599841,2.90855295,80.447,80.414,2.96592611]
[1770846601946,12.43038981,80.448,80.416,2.96592611]
[1770846602149,12.43038981,80.448,80.421,2.96592611]
[1770846602360,4.75481462,80.47,80.431,2.96592611]
[1770846602545,12.42690822,80.471,80.441,2.96592611]
[1770846602748,12.42735306,80.468,80.441,2.96592611]
[1770846604054,12.42735306,80.468,80.443,2.96592611]
[1770846604265,2.90855295,80.464,80.443,2.96592611]
[1770846604465,2.90855295,80.459,80.424,2.96592611]
[1770846604633,2.90855295,80.439,80.404,15.40301956]
[1770846605332,2.90855295,80.439,80.405,2.96592611]
[1770846607450,2.90855295,80.419,80.391,2.96592611]
[1770846610735,12.43502698,80.418,80.391,12.43912231]
[1770846611054,12.43502698,80.418,80.392,2.96592611]
[1770846611553,2.90855295,80.417,80.391,12.43912231]
[1770846611752,2.90855295,80.417,80.388,2.96592611]
[1770846613741,12.4344709,80.422,80.39,2.96592611]
[1770846613943,15.34302385,80.422,80.39,2.96592611]
[1770846614138,4.76084901,80.42,80.39,2.96592611]
[1770846614335,2.90855295,80.419,80.39,2.96592611]
[1770846617041,15.34357993,80.418,80.392,2.96592611]
[1770846618857,2.90855295,80.418,80.393,2.96592611]
[1770846619163,15.34357993,80.418,80.393,2.96592611]
[1770846620343,12.43502698,80.418,80.393,2.96592611]
[1770846620661,3.12226432,80.415,80.393,2.96592611]
[1770846621047,17.19566037,80.42,80.393,2.96592611]
[1770846621362,12.43481136,80.42,80.393,2.96592611]
[1770846621763,3.12226432,80.419,80.393,2.96592611]
[1770846622758,12.43502698,80.418,80.393,61.6]
[1770846622965,3.12226432,80.417,80.394,3.14869029]
[1770846623670,12.43502698,80.418,80.395,3.14869029]
[1770846623846,3.12226432,80.417,80.395,3.14869029]
[1770846626076,53.46,80.428,80.397,3.14869029]
[1770846626384,53.46,80.428,80.401,3.14869029]
[1770846626860,3.12226432,80.439,80.401,3.14869029]
[1770846627046,3.12226432,80.429,80.403,3.14869029]
[1770846627446,3.04475135,80.419,80.402,61.6]
[1770846627670,3.04475135,80.419,80.396,2.95758986]
[1770846628071,3.04475135,80.419,80.392,61.6]
[1770846628072,3.04475135,80.419,80.397,15.39586492]
[1770846628367,3.04475135,80.419,80.398,2.95758986]
[1770846629063,3.04475135,80.419,80.38,4.76084901]
[1770846629064,3.04475135,80.409,80.381,2.95758986]
[1770846630178,4.76084901,80.41,80.383,2.95758986]
[1770846630474,3.04475135,80.415,80.383,2.95758986]
[1770846631353,3.04475135,80.409,80.383,2.95758986]
[1770846632652,3.04475135,80.407,80.383,2.95758986]
[1770846633058,6.50098759,80.406,80.383,2.95758986]
[1770846633262,9.54573894,80.406,80.383,2.95758986]
[1770846633453,6.50098759,80.406,80.383,2.95758986]
[1770846633757,3.04475135,80.405,80.383,2.95758986]
[1770846634057,3.04475135,80.405,80.384,2.95758986]
[1770846634453,4.76084901,80.4,80.384,2.95758986]
[1770846634674,3.04475135,80.403,80.383,61.6]
[1770846635061,3.04475135,80.403,80.383,64.55758986]
[1770846637476,3.04475135,80.403,80.384,61.6]
[1770846638477,3.04475135,80.403,80.383,2.95758986]
[1770846639481,3.04475135,80.399,80.379,31.69787076]
[1770846639656,3.04475135,80.399,80.38,12.44090569]
[1770846640778,3.04475135,80.399,80.38,15.39849555]
[1770846640978,3.04475135,80.399,80.381,2.95758986]
[1770846641957,0.05659179,80.406,80.382,0.89473097]
[1770846642170,12.43487076,80.42,80.391,0.83813918]
[1770846642773,53.62,80.428,80.391,0.83813918]
[1770846642958,3.04475135,80.436,80.403,0.83844385]
[1770846643150,3.04475135,80.435,80.403,0.83844385]
[1770846643574,3.04475135,80.435,80.391,0.83844385]
[1770846643575,3.04475135,80.429,80.391,0.83844385]
[1770846643886,3.04475135,80.419,80.386,0.83874503]
[1770846644874,3.04475135,80.417,80.387,12.43982235]
[1770846645667,3.04475135,80.409,80.385,60.18]
[1770846645867,3.04475135,80.409,80.375,12.44166697]
[1770846646465,3.04475135,80.399,80.371,60.18]
[1770846647101,6.5012,80.371,80.36,0.1]
[1770846647684,3.04475135,80.37,80.36,0.1]
[1770846648173,6.5012,80.371,80.36,0.1]
[1770846648562,5.66859581,80.371,80.36,0.1]
[1770846648963,3.21989808,80.37,80.36,0.1]
[1770846649480,5.66859581,80.371,80.36,0.1]
[1770846650383,8.88849389,80.371,80.36,0.1]
[1770846650568,3.21989808,80.37,80.36,0.1]
[1770846653368,3.21989808,80.377,80.36,0.1]
[1770846657070,66.06060231,80.382,80.36,0.1]
[1770846657390,3.21989808,80.379,80.36,0.1]
[1770846657967,3.16989808,80.369,80.35,0.1]
[1770846658173,3.16989808,80.367,80.35,0.1]
[1770846659589,3.16989808,80.365,80.35,0.1]
[1770846660286,53.76,80.368,80.35,0.1]
[1770846660483,15.61085191,80.38,80.35,4.86084901]
[1770846660671,56.96989808,80.379,80.35,4.86084901]
[1770846660873,15.60786372,80.399,80.36,4.76084901]
[1770846661084,53.8,80.398,80.37,4.76084901]
[1770846661478,12.43827506,80.397,80.371,12.44229883]
[1770846661674,56.96989808,80.398,80.371,12.44229883]
[1770846661977,62.16590647,80.43,80.371,12.44229883]
[1770846661978,3.16989808,80.427,80.39,4.76084901]
[1770846662182,12.43352428,80.428,80.4,4.76084901]
[1770846662900,6.49881904,80.448,80.42,4.76084901]
[1770846663072,6.49881904,80.448,80.403,4.61729252]
[1770846663073,9.66615801,80.466,80.44,4.76084901]
[1770846663271,3.16989808,80.466,80.44,4.76084901]
[1770846663481,3.16989808,80.459,80.42,4.76084901]
[1770846664281,3.16989808,80.459,80.43,4.76084901]
[1770846664474,17.4,80.471,80.44,4.76084901]
[1770846664681,20.56989808,80.471,80.44,4.76084901]
[1770846664876,17.4,80.471,80.45,4.76084901]
[1770846665394,53.78,80.477,80.45,4.76084901]
[1770846666502,53.78,80.477,80.451,12.42992629]
[1770846668088,3.16989808,80.488,80.451,12.42992629]
[1770846668290,3.16989808,80.486,80.451,12.42992629]
[1770846668488,3.16989808,80.479,80.446,12.43061259]
[1770846668996,3.16989808,80.479,80.45,4.75402967]
[1770846669195,43.4842028,80.489,80.431,12.43301712]
[1770846669196,3.16989808,80.469,80.431,12.43301712]
[1770846669493,53.76,80.468,80.431,12.43301712]
[1770846669694,3.16989808,80.467,80.431,12.43301712]
[1770846669889,3.16989808,80.459,80.43,4.75402967]
[1770846670282,3.16989808,80.457,80.43,4.75402967]
[1770846670686,3.16989808,80.457,80.421,12.43456311]
[1770846670879,3.16989808,80.455,80.421,12.43456311]
[1770846671282,3.16989808,80.455,80.42,4.75402967]
[1770846671482,3.16989808,80.455,80.42,17.18872835]
[1770846671681,53.76,80.456,80.42,12.43469868]
[1770846671682,3.16989808,80.449,80.42,12.43469868]
[1770846672198,3.16989808,80.448,80.411,12.43610948]
[1770846672379,3.16989808,80.448,80.42,4.75402967]
[1770846672583,3.16989808,80.455,80.42,4.75402967]
[1770846672781,3.16989808,80.453,80.42,4.75402967]
[1770846674306,53.76,80.452,80.421,12.43456311]
[1770846674491,3.16989808,80.452,80.421,12.43456311]
[1770846674693,56.90989808,80.451,80.421,12.43456311]
[1770846674892,3.16989808,80.45,80.421,12.43456311]
[1770846675088,3.16989808,80.469,80.44,4.75402967]
[1770846675295,15.59704393,80.469,80.44,4.75402967]
[1770846675804,3.16989808,80.468,80.44,4.75402967]
[1770846676000,3.16989808,80.467,80.43,4.75402967]
[1770846676400,3.16989808,80.467,80.431,12.43301712]
[1770846678613,3.16989808,80.467,80.433,12.43270796]
[1770846678805,4.75402967,80.47,80.432,61.6]
[1770846678806,3.16989808,80.465,80.432,61.6]
[1770846678989,3.16989808,80.463,80.432,61.6]
[1770846679788,3.16989808,80.463,80.433,12.43270796]
[1770846680002,53.72,80.468,80.45,4.75402967]
[1770846680313,53.72,80.468,80.46,4.75402967]
[1770846680497,53.72,80.468,80.45,4.75402967]
[1770846680697,53.72,80.468,80.451,12.42992629]
[1770846681305,3.16989808,80.479,80.46,4.75402967]
[1770846681697,3.16989808,80.479,80.451,12.42992629]
[1770846682010,15.59561094,80.479,80.451,12.42992629]
[1770846682198,3.16989808,80.478,80.451,12.42992629]
[1770846684830,3.16989808,80.476,80.446,12.43055153]
[1770846685301,3.16989808,80.476,80.443,61.6]
[1770846685504,3.16989808,80.476,80.442,61.6]
[1770846686315,12.42714585,80.469,80.442,61.6]
[1770846686618,3.16989808,80.468,80.442,61.6]
[1770846687116,3.16989808,80.468,80.419,31.08704226]
[1770846687321,3.16989808,80.459,80.42,66.35402967]
[1770846687506,3.16989808,80.457,80.42,66.35402967]
[1770846687822,53.76,80.458,80.418,12.43502698]
[1770846687823,3.16989808,80.449,80.418,12.43502698]
[1770846688308,3.16989808,80.447,80.418,12.43502698]
[1770846688521,3.16989808,80.447,80.41,4.75402967]
[1770846688723,3.16989808,80.445,80.41,4.75402967]
[1770846690013,53.76,80.457,80.43,4.75402967]
[1770846690311,3.16989808,80.463,80.43,4.75402967]
[1770846690718,3.16989808,80.462,80.431,12.43301712]
[1770846692320,3.16989808,80.46,80.431,12.43301712]
[1770846692729,3.16989808,80.458,80.42,4.75402967]
[1770846693137,3.16989808,80.458,80.43,4.75402967]
[1770846693429,3.16989808,80.456,80.43,4.75402967]
[1770846693636,3.16989808,80.456,80.421,61.6]
[1770846695644,3.16989808,80.454,80.422,12.43440849]
[1770846696343,3.16989808,80.452,80.422,12.43440849]
[1770846697120,3.16989808,80.45,80.422,12.43440849]
[1770846697833,3.16989808,80.448,80.422,43.52042972]
[1770846699016,3.16989808,80.448,80.423,61.6]
[1770846700735,3.16989808,80.448,80.424,43.51934745]